bitfinex-derivatives/quotes_ETHF0:USTF0_20251117
["timestamp","ask_amount","ask_price","bid_price","bid_amount"]
[1763402087414,0.00761373,3056.6,3056.2,3.21131131]
[1763402088404,3.2078,3057.3,3056.2,3.21131131]
[1763402088608,3.2078,3057.3,3056.7,3.2078]
[1763402088805,3.2078,3057.7,3057.1,3.2078]
[1763402089506,3.216715,3057.7,3057.1,3.212703]
[1763402089710,3.2078,3057.3,3057.1,0.004903]
[1763402090010,0.008915,3057.7,3057.1,0.004903]
[1763402090212,3.216715,3057.7,3057.0,2.7400582]
[1763402090611,3.216715,3057.7,3056.6,3.2078]
[1763402091215,3.216715,3057.7,3056.8,0.004903]
[1763402091603,3.216715,3057.7,3057.0,3.2078]
[1763402092208,3.216715,3057.7,3057.0,3.7382]
[1763402092613,0.008915,3057.7,3057.6,0.4095]
[1763402093011,0.008915,3057.7,3057.4,3.2078]
[1763402093520,0.008915,3057.7,3057.1,0.53038]
[1763402093813,0.008915,3057.7,3057.0,3.2078]
[1763402094006,3.216715,3057.7,3057.0,3.2078]
[1763402094205,0.008915,3057.7,3057.0,3.2078]
[1763402094409,3.216715,3057.7,3057.0,3.2078]
[1763402094918,0.008915,3057.7,3057.0,3.2078]
[1763402095212,3.2078,3057.3,3056.8,0.004903]
[1763402095413,0.008915,3057.7,3056.8,0.004903]
[1763402095414,0.008915,3057.7,3057.0,3.2078]
[1763402099417,0.008915,3057.7,3057.0,3.73819]
[1763402099625,0.008915,3057.7,3057.2,0.53037]
[1763402100214,0.008915,3057.7,3057.4,3.2078]
[1763402100719,0.5331,3057.6,3056.8,0.004903]
[1763402100923,3.2078,3057.4,3056.8,0.004903]
[1763402101225,3.2078,3057.0,3056.8,0.004903]
[1763402101427,3.2078,3057.0,3056.2,3.21131131]
[1763402101428,0.5331,3056.8,3056.2,3.21131131]
[1763402101626,3.2078,3056.6,3056.2,3.21131131]
[1763402101919,3.2078,3057.0,3056.2,3.21131131]
[1763402102711,3.2078,3057.0,3056.2,3.74185131]
[1763402102911,0.5331,3057.6,3056.7,3.2078]
[1763402102912,3.2078,3057.4,3056.7,3.2078]
[1763402103119,3.2078,3057.4,3056.9,0.53042]
[1763402103317,3.2078,3057.8,3057.2,3.2078]
[1763402103520,3.2078,3057.8,3056.8,3.73824]
[1763402103717,3.2078,3057.8,3057.2,3.73816]
[1763402103913,3.2078,3057.8,3057.2,3.2078]
[1763402104216,0.5162,3058.4,3056.2,0.00351131]
[1763402104217,0.5331,3056.8,3056.2,0.00351131]
[1763402104422,3.2078,3056.3,3055.3,3.2078]
[1763402104623,0.004903,3056.1,3055.3,3.2078]
[1763402105012,0.5331,3056.0,3055.3,3.2078]
[1763402105212,0.004903,3056.1,3055.3,3.2078]
[1763402105421,0.5331,3056.0,3055.3,3.2111715]
[1763402105619,3.2078,3055.9,3055.3,3.2111715]
[1763402105926,3.2078,3055.4,3055.3,0.0033715]
[1763402106122,3.21118824,3055.4,3055.3,0.0033715]
[1763402107326,3.2078,3055.8,3055.3,3.2111715]
[1763402107923,3.2078,3055.4,3055.3,0.0033715]
[1763402108326,3.21099979,3055.4,3055.3,0.0033715]
[1763402109328,0.00319979,3055.4,3055.3,0.0033715]
[1763402109722,0.00319979,3055.4,3055.3,3.2111715]
[1763402110031,0.004903,3056.1,3055.3,12.4839715]
[1763402110330,0.004903,3056.1,3055.4,3.2078]
[1763402110630,0.004903,3056.1,3055.8,3.2078]
[1763402110829,0.00794538,3056.1,3055.8,3.2078]
[1763402111829,0.00794538,3056.1,3055.3,3.2111715]
[1763402112421,3.2078,3055.8,3055.3,0.0033715]
[1763402113135,3.2078,3055.4,3055.3,0.0033715]
[1763402113930,0.00794538,3056.1,3055.3,3.2111715]
[1763402114633,3.2078,3055.9,3055.3,3.2111715]
[1763402114834,0.00794538,3056.1,3055.3,3.7418715]
[1763402115033,0.00794538,3056.1,3055.3,3.2111715]
[1763402116928,3.2078,3056.3,3055.7,3.2078]
[1763402117921,3.2078,3056.3,3055.7,3.73843]
[1763402118128,0.00897355,3056.3,3056.1,3.2078]
[1763402118531,0.00897355,3056.3,3055.7,3.212703]
[1763402118735,3.2078,3056.2,3055.7,3.212703]
[1763402118934,0.00897355,3056.3,3055.7,3.212703]
[1763402119132,3.2078,3056.2,3055.7,0.004903]
[1763402119635,3.2078,3056.1,3055.7,0.004903]
[1763402121439,0.00897355,3056.3,3055.7,3.212703]
[1763402121633,3.2078,3056.1,3055.7,0.004903]
[1763402122038,0.00897355,3056.3,3055.7,3.212703]
[1763402122941,3.2078,3056.9,3056.2,3.2078]
[1763402123146,3.2078,3056.9,3056.2,3.73834]
[1763402123355,3.2078,3056.9,3056.2,3.2078]
[1763402123831,3.21641115,3056.9,3056.3,0.53052]
[1763402124141,3.21641115,3056.9,3056.3,0.53051]
[1763402124335,3.21641115,3056.9,3056.2,3.2078]
[1763402124946,0.00861115,3056.9,3056.8,0.1082]
[1763402125841,0.00861115,3056.9,3056.6,3.2078]
[1763402126038,0.00861115,3056.9,3056.5,3.2078]
[1763402126242,3.2078,3057.3,3056.8,0.1082]
[1763402126838,3.2078,3057.3,3056.5,3.2078]
[1763402127339,3.2078,3056.8,3056.1,3.2078]
[1763402127538,3.212703,3057.2,3056.5,3.2078]
[1763402128653,3.212703,3057.2,3056.6,0.53046]
[1763402129340,3.212703,3057.2,3056.5,3.2078]
[1763402129341,3.212703,3057.2,3056.8,0.53042]
[1763402129653,3.212703,3057.2,3056.8,0.4777]
[1763402129846,3.212703,3057.2,3056.6,0.53047]
[1763402130247,0.00377521,3057.3,3056.9,3.6855]
[1763402130545,3.2078,3057.6,3057.1,0.53038]
[1763402130749,3.2078,3057.6,3056.9,3.6855]
[1763402130949,3.2078,3057.1,3056.5,3.2078]
[1763402131450,3.21510735,3057.1,3056.5,3.2078]
[1763402132255,3.2078,3056.6,3055.3,3.2111715]
[1763402132455,3.2078,3056.1,3055.4,0.53068]
[1763402132658,3.2078,3056.5,3055.9,0.02290573]
[1763402132855,3.2078,3056.5,3056.1,3.2078]
[1763402133544,3.2078,3056.5,3055.7,0.004903]
[1763402133851,3.2078,3056.5,3056.3,0.02290573]
[1763402134646,3.2078,3056.5,3056.4,0.02290573]
[1763402137548,3.2078,3056.5,3055.7,0.004903]
[1763402137854,3.2078,3055.8,3055.7,0.004903]
[1763402138957,3.6769,3056.2,3055.7,0.004903]
[1763402141558,3.2078,3056.2,3055.7,0.004903]
[1763402141954,3.2078,3056.6,3055.7,3.212703]
[1763402142258,3.2078,3056.6,3055.7,3.743333]
[1763402142460,3.2078,3056.5,3056.2,0.4777]
[1763402142757,3.2078,3056.5,3056.0,0.53057]
[1763402143060,3.2078,3056.5,3055.9,0.53059]
[1763402143653,3.2078,3056.5,3056.2,0.53052]
[1763402143859,3.2078,3056.5,3055.7,0.004903]
[1763402144359,3.2078,3056.5,3055.7,3.212703]
[1763402144658,3.2078,3056.5,3056.0,0.53058]
[1763402145045,3.2078,3056.5,3056.0,0.53057]
[1763402145559,3.6769,3056.9,3056.0,0.53057]
[1763402145865,3.2078,3056.4,3055.7,3.212703]
[1763402146056,3.2078,3056.4,3055.9,0.53059]
[1763402146556,3.2078,3056.4,3055.8,0.53061]
[1763402146960,3.2078,3056.4,3055.7,3.743333]
[1763402147157,3.2078,3056.4,3055.7,3.212703]
[1763402148265,3.2078,3056.4,3055.7,3.743333]
[1763402148463,3.2078,3056.4,3055.7,3.212703]
[1763402150060,3.2078,3056.4,3055.7,0.004903]
[1763402150853,3.2078,3056.0,3055.7,0.004903]
[1763402151258,0.7925,3055.8,3055.7,0.004903]
[1763402152361,1.2616,3055.8,3055.7,0.004903]
[1763402152663,3.2078,3056.0,3055.7,0.004903]
[1763402153156,2.13546869,3056.9,3055.8,0.53059]
[1763402153157,3.2078,3056.4,3055.8,0.53059]
[1763402153463,3.2078,3056.4,3055.9,0.53058]
[1763402154259,3.2078,3056.8,3055.9,0.53058]
[1763402155662,3.2078,3056.8,3055.8,0.53061]
[1763402155865,3.2078,3056.8,3055.9,0.53058]
[1763402156466,3.2078,3056.8,3056.0,0.53055]
[1763402157265,3.2078,3056.8,3056.1,3.2078]
[1763402157460,3.2078,3056.8,3056.7,0.7946]
[1763402157764,3.2078,3056.8,3056.1,3.2078]
[1763402158167,3.2078,3056.8,3056.3,0.53051]
[1763402158357,3.2078,3056.8,3056.1,3.2078]
[1763402158358,3.2078,3056.8,3056.5,0.53047]
[1763402158660,3.2078,3056.8,3056.1,3.2078]
[1763402158867,3.2078,3056.3,3055.9,0.53059]
[1763402159065,0.4436,3057.0,3055.9,0.53059]
[1763402159066,3.2078,3056.7,3055.9,0.53059]
[1763402159466,3.2078,3056.7,3055.8,0.5306]
[1763402159664,3.2078,3056.7,3055.8,0.3337]
[1763402159867,3.2078,3056.7,3055.8,4.07211]
[1763402160263,3.2078,3056.7,3055.8,3.2078]
[1763402160664,3.2078,3056.7,3055.9,0.53059]
[1763402160961,3.2078,3056.7,3056.6,0.6962]
[1763402161169,3.2078,3057.2,3057.0,0.6962]
[1763402161369,0.4436,3057.0,3056.3,3.2078]
[1763402161762,3.2078,3056.8,3056.3,0.53052]
[1763402161964,0.4436,3057.0,3056.1,3.2078]
[1763402162370,0.4436,3057.0,3056.1,3.73835]
[1763402162967,3.2078,3056.6,3056.1,3.2078]
[1763402163167,3.2078,3056.6,3055.7,0.004903]
[1763402163168,0.735,3056.2,3055.7,0.004903]
[1763402163466,1.1786,3055.8,3055.7,0.004903]
[1763402164170,3.2078,3056.2,3055.7,0.004903]
[1763402166058,0.735,3055.8,3055.7,0.004903]
[1763402166774,4.3864,3055.8,3055.7,0.004903]
[1763402167069,3.9428,3055.8,3055.7,0.004903]
[1763402167272,4.3864,3055.8,3055.7,0.004903]
[1763402169771,5.10054492,3055.8,3055.7,0.004903]
[1763402170369,4.3864,3055.8,3055.7,0.004903]
[1763402172183,3.9428,3055.8,3055.7,0.004903]
[1763402172476,3.2078,3056.2,3055.7,0.701103]
[1763402173671,3.2078,3056.2,3056.1,0.53056]
[1763402173981,3.2078,3056.6,3056.3,0.53051]
[1763402174178,3.2078,3056.6,3056.5,0.6962]
[1763402174376,3.6514,3057.0,3056.1,0.53056]
[1763402174678,3.6514,3057.0,3056.3,0.53052]
[1763402174879,3.6514,3057.0,3056.1,0.53054]
[1763402175078,3.6514,3057.0,3056.0,3.2078]
[1763402175381,3.6514,3057.0,3056.3,0.53051]
[1763402175680,3.2078,3056.6,3056.1,0.53055]
[1763402175890,3.2078,3056.6,3056.0,3.2078]
[1763402176278,0.735,3056.1,3056.0,3.2078]
[1763402176774,3.9428,3056.1,3055.7,0.004903]
[1763402177171,0.735,3055.8,3055.7,0.004903]
[1763402177976,3.2078,3056.1,3055.7,0.004903]
[1763402178476,3.2078,3056.1,3055.7,0.535523]
[1763402178784,0.6917,3055.8,3055.7,0.004903]
[1763402178976,3.2078,3056.1,3055.7,0.004903]
[1763402180481,3.2078,3056.6,3056.3,0.53052]
[1763402180685,3.2078,3056.6,3056.5,1.27059]
[1763402180888,3.2078,3057.0,3056.8,0.53042]
[1763402181182,3.2078,3057.0,3056.4,0.4351]
[1763402181183,3.2078,3057.0,3056.9,0.7401]
[1763402181384,3.2078,3057.0,3056.9,1.27052]
[1763402181575,3.2078,3057.0,3056.9,0.7401]
[1763402181981,3.2078,3057.0,3056.9,1.27052]
[1763402182177,0.00730735,3057.1,3056.9,1.27052]
[1763402182378,0.00730735,3057.1,3057.0,1.7056]
[1763402182580,0.00730735,3057.1,3057.0,4.976]
[1763402182779,0.00730735,3057.1,3056.7,3.2078]
[1763402183482,0.00730735,3057.1,3055.3,0.0033715]
[1763402183483,0.4287,3055.8,3055.3,0.0033715]
[1763402183784,0.4287,3055.8,3054.5,3.2078]
[1763402183785,3.2078,3055.4,3054.5,3.2078]
[1763402184584,0.004903,3055.3,3054.6,0.004903]
[1763402185178,0.004903,3055.3,3054.8,0.96588]
[1763402185377,0.004903,3055.3,3054.9,3.2078]
[1763402185876,0.004903,3055.3,3054.9,3.73857]
[1763402186185,3.2078,3055.8,3054.9,3.2078]
[1763402186572,3.2078,3055.7,3054.9,0.53077]
[1763402186781,3.2078,3055.7,3055.0,0.53075]
[1763402187183,3.212703,3055.7,3055.2,3.2078]
[1763402187380,3.212703,3055.7,3055.2,3.73851]
[1763402187678,3.212703,3055.7,3055.2,3.2078]
[1763402188183,3.212703,3055.7,3055.0,3.2078]
[1763402188378,3.212703,3055.7,3055.0,3.73855]
[1763402188687,3.212703,3055.7,3055.1,0.53073]
[1763402189577,3.212703,3055.7,3055.0,3.2078]
[1763402190179,3.212703,3055.7,3055.1,0.53073]
[1763402190489,3.212703,3055.7,3055.0,3.2078]
[1763402191189,3.212703,3055.7,3055.2,0.53071]
[1763402191482,0.004903,3055.7,3055.6,0.7401]
[1763402192073,0.004903,3055.7,3055.5,0.4435]
[1763402192377,3.212703,3055.7,3055.0,3.2078]
[1763402192574,3.212703,3055.7,3055.2,0.97421]
[1763402192984,3.212703,3055.7,3055.2,0.4435]
[1763402193188,3.212703,3055.7,3055.1,0.53072]
[1763402193489,3.212703,3055.7,3055.2,0.97421]
[1763402194082,3.212703,3055.7,3055.2,0.4435]
[1763402194290,3.212703,3055.7,3055.4,0.53066]
[1763402194687,3.212703,3055.7,3055.3,0.5307]
[1763402195690,3.212703,3055.7,3055.2,0.4435]
[1763402195881,3.212703,3055.7,3055.1,0.53073]
[1763402196081,3.212703,3055.7,3055.3,0.53068]
[1763402196586,3.212703,3055.7,3055.1,0.53073]
[1763402196889,3.212703,3055.7,3055.5,0.53065]
[1763402197081,0.004903,3055.7,3055.5,3.2078]
[1763402197591,0.004903,3055.7,3055.6,1.23255]
[1763402198088,3.2078,3056.1,3055.5,3.2078]
[1763402198398,0.6965,3055.6,3055.2,0.97421]
[1763402198886,0.6965,3054.8,3054.7,3.2078]
[1763402199089,0.00394655,3054.8,3054.7,3.9097]
[1763402199793,0.00394655,3054.8,3054.7,4.4405]
[1763402200089,0.00394655,3054.8,3054.7,3.9097]
[1763402201082,0.00394655,3054.8,3054.7,4.4405]
[1763402201583,0.00394655,3054.8,3054.7,3.9097]
[1763402201984,0.00394655,3054.8,3054.7,4.4405]
[1763402202985,0.00394655,3054.8,3054.7,3.9097]
[1763402203185,0.00394655,3054.8,3054.7,4.4405]
[1763402203994,3.212703,3055.7,3055.2,0.4435]
[1763402204378,0.004903,3055.7,3055.3,0.5307]
[1763402204689,0.004903,3055.7,3055.2,0.4435]
[1763402205187,0.00905377,3055.7,3055.6,1.23255]
[1763402205388,0.00905377,3055.7,3055.6,0.7019]
[1763402205789,0.00905377,3055.7,3055.6,1.23255]
[1763402205985,3.2078,3056.6,3056.0,0.7019]
[1763402206489,3.2078,3056.6,3056.2,0.53054]
[1763402206882,3.2078,3056.6,3055.9,3.2078]
[1763402207084,0.6965,3056.0,3055.9,3.212703]
[1763402207282,3.21361519,3056.6,3055.9,3.914603]
[1763402207489,3.21361519,3056.6,3056.2,0.53052]
[1763402207886,3.21361519,3056.6,3056.1,0.53056]
[1763402208086,3.21361519,3056.6,3056.5,0.7019]
[1763402208289,3.21361519,3056.6,3056.5,1.23239]
[1763402208290,0.00581519,3056.6,3056.5,1.23239]
[1763402208687,3.2078,3057.0,3056.9,0.7019]
[1763402208888,3.2078,3057.5,3057.0,0.4435]
[1763402209089,3.2078,3057.5,3057.4,0.7019]
[1763402209298,0.2189,3058.2,3057.2,0.53037]
[1763402209299,3.2078,3057.9,3057.8,0.7019]
[1763402209487,3.2078,3058.3,3057.8,0.7019]
[1763402209795,3.21123265,3058.3,3057.8,0.70448848]
[1763402209981,3.21123265,3058.3,3057.8,0.00258848]
[1763402211100,0.00343265,3058.3,3057.8,0.00258848]
[1763402211693,0.00343265,3058.3,3057.8,0.53284848]
[1763402211898,0.00343265,3058.3,3057.9,0.53025]
[1763402212199,71.92098284,3061.9,3059.0,0.7019]
[1763402212200,3.2078,3059.1,3059.0,0.7019]
[1763402212697,3.2078,3059.1,3058.8,0.4435]
[1763402213000,3.2078,3059.1,3059.0,0.7019]
[1763402213200,0.00356664,3059.1,3059.0,0.7019]
[1763402213496,3.2078,3059.6,3059.0,0.7019]
[1763402213697,0.6965,3059.1,3058.3,3.2078]
[1763402213899,3.2078,3058.8,3058.2,0.97369]
[1763402214096,3.2078,3058.8,3058.3,3.2078]
[1763402214097,0.6965,3058.4,3058.3,3.2078]
[1763402214287,0.00402029,3058.4,3058.3,3.9097]
[1763402214691,0.00402029,3058.4,3058.2,0.4435]
[1763402214896,0.00402029,3058.4,3058.0,0.004903]
[1763402216003,3.2078,3058.2,3058.0,0.004903]
[1763402217102,0.6965,3058.1,3058.0,0.004903]
[1763402217695,0.6619,3057.9,3057.1,3.2078]
[1763402217897,3.2078,3057.6,3057.1,3.2078]
[1763402218703,3.2078,3057.6,3057.1,3.21124799]
[1763402218999,3.2078,3057.6,3057.1,3.74162799]
[1763402219199,0.00402029,3058.4,3057.1,3.74162799]
[1763402219200,3.2078,3058.0,3057.1,3.74162799]
[1763402219408,3.2078,3058.0,3057.9,0.6287]
[1763402219700,3.2078,3058.0,3057.6,0.3708]
[1763402219903,3.2078,3058.0,3057.5,3.2078]
[1763402220094,3.2078,3058.0,3057.3,0.53034]
[1763402220298,3.2078,3058.0,3057.1,0.00344799]
[1763402220695,0.6619,3057.2,3057.1,0.00344799]
[1763402221200,3.2078,3057.5,3055.7,3.2078]
[1763402221201,0.2175,3057.0,3055.7,3.2078]
[1763402221395,3.2078,3056.4,3055.8,0.9741]
[1763402221595,3.2078,3056.4,3055.8,0.4435]
[1763402221795,3.2078,3056.4,3055.8,0.97411]
[1763402222006,3.2078,3056.4,3055.8,0.4435]
[1763402222302,3.212703,3056.4,3055.8,0.4507863]
[1763402222503,3.212703,3056.4,3055.9,0.53059]
[1763402222705,3.212703,3056.4,3055.8,0.0072863]
[1763402223093,3.2078,3055.9,3055.8,0.0072863]
[1763402223297,3.21049803,3055.9,3055.8,0.0072863]
[1763402223808,3.87239803,3055.9,3055.8,0.0072863]
[1763402224899,0.6619,3055.7,3054.2,3.2078]
[1763402225205,3.2078,3055.1,3054.6,3.2078]
[1763402225407,3.2078,3055.1,3054.6,3.73862]
[1763402225604,3.2078,3055.5,3054.8,0.3708]
[1763402225806,0.00269803,3055.9,3055.4,0.6287]
[1763402225996,0.00269803,3055.9,3055.6,3.2078]
[1763402226194,0.00269803,3055.9,3055.8,0.6287]
[1763402226705,3.2078,3057.6,3056.9,0.3708]
[1763402227098,3.2078,3057.6,3056.3,3.2078]
[1763402227307,3.2078,3057.2,3056.5,0.53049]
[1763402227607,3.21011348,3057.2,3056.9,0.3708]
[1763402227902,0.00231348,3057.2,3056.9,0.3708]
[1763402228295,0.00231348,3057.2,3057.1,3.2078]
[1763402228500,0.00231348,3057.2,3057.1,3.21018838]
[1763402228697,0.00231348,3057.2,3057.1,0.00238838]
[1763402230898,0.00231348,3057.2,3057.1,3.21018838]
[1763402232903,0.00231348,3057.2,3057.1,3.74057838]
[1763402233714,0.66421348,3057.2,3057.1,3.21018838]
[1763402234008,0.66421348,3057.2,3056.7,0.004903]
[1763402234009,6.00231348,3057.2,3056.7,0.004903]
[1763402234209,3.2078,3056.8,3056.7,0.004903]
[1763402234413,3.2078,3056.8,3055.5,0.3708]
[1763402234609,3.2078,3056.7,3055.6,0.53065]
[1763402234812,3.2078,3056.7,3055.8,3.2078]
[1763402235614,3.2078,3056.7,3055.9,0.004903]
[1763402236104,3.2078,3056.7,3055.9,0.535493]
[1763402236305,0.00231348,3057.2,3055.9,0.004903]
[1763402236306,3.2078,3057.1,3055.9,0.004903]
[1763402236607,3.2078,3056.3,3055.9,0.004903]
[1763402236808,3.2078,3056.4,3055.9,0.004903]
[1763402237204,3.2078,3056.8,3055.9,3.212703]
[1763402237407,3.2078,3056.8,3056.0,0.53058]
[1763402237606,3.2078,3056.8,3055.9,3.212703]
[1763402238604,3.2078,3056.3,3055.9,0.004903]
[1763402239207,3.2078,3056.3,3055.9,3.212703]
[1763402240312,3.2078,3056.7,3055.9,3.212703]
[1763402241319,3.2078,3056.7,3056.2,0.3829]
[1763402242811,3.2078,3056.7,3055.9,3.743293]
[1763402243108,3.2078,3056.7,3056.2,0.3829]
[1763402243912,0.00231348,3057.2,3056.2,0.3829]
[1763402244111,3.2078,3057.1,3056.6,0.6027]
[1763402244619,3.2078,3057.1,3056.3,3.73831]
[1763402244809,3.2078,3057.1,3056.3,3.73832]
[1763402245014,3.2078,3057.1,3056.3,3.2078]
[1763402245919,3.2078,3057.1,3056.3,3.73832]
[1763402246110,3.2078,3057.1,3056.3,3.2078]
[1763402246311,3.2078,3057.1,3056.3,3.73832]
[1763402246509,3.2078,3057.1,3056.3,3.2078]
[1763402246821,0.5575,3056.4,3055.9,3.212703]
[1763402247319,3.2078,3057.0,3056.4,0.3584]
[1763402247520,3.2078,3057.0,3056.3,3.2078]
[1763402250716,3.2078,3057.0,3056.4,0.3584]
[1763402251222,3.2078,3057.0,3056.4,0.8889]
[1763402251719,0.00231348,3057.2,3056.9,0.582]
[1763402251927,3.2078,3057.8,3057.6,0.3584]
[1763402252223,3.2078,3057.8,3057.2,0.53036]
[1763402252418,1.68478262,3058.6,3057.4,0.53032]
[1763402252419,3.2078,3058.2,3057.4,0.53032]
[1763402252624,3.2078,3058.2,3057.6,0.3584]
[1763402252922,3.2165391,3058.2,3057.6,0.363303]
[1763402253219,0.0087391,3058.2,3058.1,0.582]
[1763402253420,0.0087391,3058.2,3058.1,0.58619453]
[1763402253622,0.0087391,3058.2,3058.1,7.11640453]
[1763402253820,3.2078,3058.6,3058.5,0.582]
[1763402254023,3.2078,3058.6,3058.5,1.11214]
[1763402254323,3.2078,3058.6,3058.5,0.582]
[1763402254508,3.2078,3058.6,3058.5,1.11214]
[1763402254707,3.2107033,3058.6,3058.5,0.582]
[1763402254912,3.2107033,3058.6,3058.2,0.3584]
[1763402255719,0.5663,3057.7,3057.6,0.004903]
[1763402255925,3.2078,3058.3,3057.6,0.363303]
[1763402256416,3.2078,3057.9,3057.6,0.363303]
[1763402256816,3.2078,3058.3,3057.6,0.36570926]
[1763402257923,3.2078,3057.9,3057.6,0.36570926]
[1763402258126,3.2078,3058.3,3057.6,0.36570926]
[1763402259015,0.0029033,3058.6,3058.3,0.3584]
[1763402259221,0.0029033,3058.6,3057.9,3.2078]
[1763402260026,0.0029033,3058.6,3058.0,0.53021]
[1763402261425,0.0029033,3058.6,3057.9,3.73803]
[1763402261921,3.2078,3058.2,3057.6,0.36570926]
[1763402262221,3.2078,3057.8,3057.6,0.00730926]
[1763402262726,3.2078,3058.2,3057.6,0.36570926]
[1763402262919,3.2078,3057.8,3057.6,0.36570926]
[1763402263122,0.5663,3057.7,3057.6,0.00730926]
[1763402263520,3.2078,3057.8,3057.6,0.00730926]
[1763402264225,0.5663,3057.7,3057.6,0.00730926]
[1763402264425,3.2078,3057.8,3057.6,0.00730926]
[1763402264624,3.2078,3058.2,3057.6,0.00730926]
[1763402264826,3.2078,3058.2,3057.6,0.36570926]
[1763402265831,0.5663,3057.7,3057.6,0.00730926]
[1763402266222,3.2078,3057.8,3057.6,0.00730926]
[1763402266825,3.2078,3058.2,3057.6,0.36570926]
[1763402268227,3.2078,3058.2,3057.6,0.00730926]
[1763402269027,3.2078,3058.2,3057.7,0.53026]
[1763402269228,3.2078,3058.2,3057.7,0.53028]
[1763402269532,3.2078,3058.2,3057.6,0.36570926]
[1763402270120,3.2078,3058.2,3057.6,0.00730926]
[1763402270322,0.559,3057.3,3056.4,0.3584]
[1763402270523,3.2078,3056.9,3056.4,0.3584]
[1763402271328,0.004903,3057.0,3056.5,3.2078]
[1763402271525,0.004903,3057.0,3056.6,0.53047]
[1763402271728,0.004903,3057.0,3056.9,0.582]
[1763402272830,0.004903,3057.0,3056.9,4.32022]
[1763402273523,0.004903,3057.0,3056.9,3.7898]
[1763402275031,0.004903,3057.0,3056.9,4.32022]
[1763402275231,3.2078,3057.7,3057.6,0.3584]
[1763402275432,3.2078,3057.7,3057.0,0.3584]
[1763402275433,3.2078,3057.7,3057.0,0.8888]
[1763402275633,3.2078,3057.7,3057.1,0.53039]
[1763402275836,3.2078,3057.7,3057.0,0.8888]
[1763402276028,3.2078,3057.7,3057.6,0.3584]
[1763402276230,3.2078,3057.7,3057.0,0.8888]
[1763402276431,3.2078,3057.7,3057.0,0.3584]
[1763402276631,3.2078,3057.7,3057.0,0.8888]
[1763402276838,3.2078,3057.7,3057.1,0.53038]
[1763402277131,3.2078,3057.7,3057.0,0.3584]
[1763402278135,3.2078,3057.7,3057.0,0.88879]
[1763402278436,3.2078,3057.7,3057.1,0.53037]
[1763402278632,3.2078,3057.7,3057.6,0.3034]
[1763402279133,3.2078,3057.7,3057.6,0.8275]
[1763402279528,0.004903,3058.0,3057.9,0.5241]
[1763402280328,0.004903,3058.0,3057.8,3.2078]
[1763402280329,0.388,3057.4,3057.0,0.3584]
[1763402280732,3.2078,3057.6,3056.9,3.2078]
[1763402280733,0.388,3057.0,3056.9,3.2078]
[1763402281032,3.2078,3057.6,3057.0,0.3034]
[1763402281345,0.004903,3058.0,3056.4,0.36112483]
[1763402281346,0.388,3057.1,3056.4,3.56892483]
[1763402281530,3.2078,3057.2,3057.0,0.3034]
[1763402282435,0.388,3057.1,3056.4,3.56892483]
[1763402282937,0.388,3056.5,3056.4,0.00272483]
[1763402283528,3.2078,3056.6,3056.4,0.30612483]
[1763402284131,3.2078,3056.6,3056.5,0.5241]
[1763402284435,3.2078,3056.6,3056.5,1.05459]
[1763402284633,3.2078,3056.6,3056.5,0.5241]
[1763402286331,2.81474107,3056.6,3056.5,0.5241]
[1763402287139,3.2078,3057.1,3056.5,4.26239]
[1763402287330,3.2078,3057.1,3056.6,0.53046]
[1763402287527,3.2078,3057.1,3056.5,3.2078]
[1763402287728,3.2078,3057.1,3056.5,0.53049]
[1763402288138,3.2078,3057.1,3056.6,0.53046]
[1763402288541,3.2078,3057.1,3056.4,3.51392483]
[1763402288748,0.388,3056.5,3056.4,0.30612483]
[1763402289046,0.388,3056.5,3056.4,0.00272483]
[1763402289743,3.2078,3056.7,3056.4,0.00272483]
[1763402289744,3.2078,3057.1,3056.5,0.3034]
[1763402290741,0.388,3056.5,3056.4,0.00272483]
[1763402290943,3.2078,3056.7,3056.5,0.3034]
[1763402291136,3.2078,3056.7,3056.4,0.00272483]
[1763402291137,0.388,3056.5,3056.4,0.00272483]
[1763402291943,1.12318841,3057.7,3057.3,0.5241]
[1763402292142,3.2078,3058.3,3057.6,0.3034]
[1763402292348,2.40480507,3058.3,3058.2,0.8275]
[1763402292537,0.0029033,3058.6,3058.2,0.8275]
[1763402292743,3.2078,3058.9,3058.8,0.3034]
[1763402293039,3.2078,3058.9,3058.2,0.3034]
[1763402293241,3.2078,3058.9,3058.3,0.53017]
[1763402293438,3.212703,3058.9,3058.3,0.004903]
[1763402293638,3.21501308,3058.9,3058.3,0.00859137]
[1763402294246,0.388,3058.4,3058.3,0.00859137]
[1763402294547,3.5958,3058.4,3058.3,0.00859137]
[1763402294947,3.2078,3058.4,3058.3,0.00859137]
[1763402295447,0.00721308,3058.9,3058.3,0.00859137]
[1763402295448,3.21501308,3058.9,3058.3,0.00859137]
[1763402295844,3.21501308,3058.9,3058.5,0.53014]
[1763402296146,1.12318841,3059.7,3058.3,0.00859137]
[1763402296147,3.2078,3059.8,3059.2,0.5241]
[1763402296343,3.2078,3059.8,3058.8,0.3034]
[1763402296344,3.2078,3059.8,3059.7,0.5241]
[1763402296549,3.2078,3059.8,3059.4,0.83338]
[1763402296745,3.2078,3059.8,3059.1,3.73783]
[1763402296939,3.2078,3059.8,3059.4,0.3034]
[1763402297146,3.21059976,3059.8,3059.7,1.05404]
[1763402297444,0.00279976,3059.8,3059.7,4.26184]
[1763402297647,0.00279976,3059.8,3059.7,10.26184]
[1763402297849,2.23955362,3061.9,3059.7,10.26184]
[1763402297850,3.2078,3061.3,3060.6,0.3194]
[1763402298150,3.2078,3062.2,3061.2,3.5272]
[1763402298353,3.2078,3061.9,3061.3,3.2078]
[1763402298539,3.2078,3062.3,3061.5,0.52962]